bitfinex-derivatives/quotes_BTCF0:USTF0_20250222
["timestamp","ask_amount","ask_price","bid_price","bid_amount"]
[1740229842752,1.9364156,96853.0,96852.0,0.005]
[1740229843752,1.9364156,96853.0,96852.0,0.012]
[1740229843753,1.9374156,96853.0,96852.0,0.012]
[1740229853568,1.9404156,96853.0,96852.0,0.005]
[1740229854768,0.2065399,96851.0,96850.0,0.0413]
[1740229854961,0.2165399,96851.0,96850.0,0.0413]
[1740229855167,0.2065506,96846.0,96845.0,0.4191]
[1740229855360,0.2165506,96846.0,96845.0,0.4177]
[1740229855669,1.7165506,96846.0,96845.0,0.4177]
[1740229856668,1.7195506,96846.0,96845.0,0.4177]
[1740229857368,1.7215506,96846.0,96845.0,0.4177]
[1740229858163,0.1527504,96860.0,96846.0,0.0516374]
[1740229858352,0.0516317,96857.0,96853.0,0.3608]
[1740229858558,0.2065314,96855.0,96854.0,0.0585]
[1740229858758,0.05163,96861.0,96854.0,0.0585]
[1740229858759,0.57272,96858.0,96857.0,0.2065271]
[1740229858956,0.58272,96858.0,96854.0,0.1101333]
[1740229859167,0.2165314,96855.0,96854.0,0.0585]
[1740229859563,0.2165314,96855.0,96854.0,0.2650335]
[1740229859762,0.2165314,96855.0,96854.0,0.2700335]
[1740229860664,0.2165314,96855.0,96854.0,0.2680335]
[1740229860863,0.2165314,96855.0,96854.0,0.2690335]
[1740229861261,0.01,96855.0,96854.0,0.2690335]
[1740229862465,0.57272,96858.0,96854.0,0.2690335]
[1740229862466,0.57272,96858.0,96854.0,0.0635]
[1740229862671,0.57272,96858.0,96857.0,0.2065271]
[1740229862866,0.58272,96858.0,96857.0,0.2065271]
[1740229863169,0.00015482,96862.0,96861.0,0.2065186]
[1740229863359,0.01015482,96862.0,96861.0,0.2065186]
[1740229863665,0.21667122,96862.0,96861.0,0.2065186]
[1740229864371,0.01015482,96862.0,96860.0,0.10104]
[1740229864573,0.2165186,96861.0,96860.0,0.3075595]
[1740229865571,0.2165186,96861.0,96860.0,0.2065195]
[1740229866065,0.258153,96860.0,96859.0,0.2581513]
[1740229866266,0.265153,96860.0,96859.0,0.2581513]
[1740229867055,0.327953,96860.0,96859.0,0.2581513]
[1740229868378,0.327953,96860.0,96859.0,0.2065207]
[1740229868673,0.2793228,96860.0,96859.0,0.2065207]
[1740229869763,0.2803228,96860.0,96859.0,0.2065207]
[1740229869961,0.3413228,96860.0,96859.0,0.2065207]
[1740229870169,0.3403228,96860.0,96859.0,0.2065207]
[1740229870375,0.3413228,96860.0,96859.0,0.2065207]
[1740229871574,0.2581557,96859.0,96858.0,0.2065249]
[1740229871776,0.2681557,96859.0,96858.0,0.2065249]
[1740229873068,0.2711557,96859.0,96858.0,0.2065249]
[1740229875070,0.2711557,96859.0,96858.0,0.5673249]
[1740229875466,0.013,96859.0,96858.0,0.5673249]
[1740229875760,0.2095228,96859.0,96858.0,0.5673249]
[1740229875970,0.001,96859.0,96858.0,0.5673249]
[1740229876170,0.003,96859.0,96858.0,0.5673249]
[1740229876774,0.00015482,96862.0,96858.0,0.3708]
[1740229876971,0.00015482,96862.0,96861.0,0.2165186]
[1740229878876,0.00015482,96862.0,96861.0,0.9381186]
[1740229879066,0.00315482,96862.0,96861.0,0.9381186]
[1740229879270,0.00415482,96862.0,96861.0,0.9381186]
[1740229879973,0.0581,96870.0,96868.0,0.0516258]
[1740229880271,0.0581,96870.0,96869.0,0.6683415]
[1740229880465,0.0681,96870.0,96869.0,0.7011415]
[1740229881073,0.0581,96870.0,96869.0,0.7111415]
[1740229882568,0.0631,96870.0,96869.0,0.7111415]
[1740229882775,0.0651,96870.0,96869.0,0.7111415]
[1740229883367,0.0651,96870.0,96869.0,0.6783415]
[1740229892580,0.0631,96870.0,96869.0,0.6783415]
[1740229896585,0.2695994,96870.0,96869.0,0.6783415]
[1740229897783,0.2695994,96870.0,96869.0,0.5773015]
[1740229897974,0.2695994,96870.0,96869.0,0.6783415]
[1740229898377,0.2695994,96870.0,96869.0,0.6683415]
[1740229898578,0.2695994,96870.0,96869.0,0.6783415]
[1740229899077,0.2795994,96870.0,96869.0,0.5673015]
[1740229901088,0.2795994,96870.0,96869.0,0.3608]
[1740229901386,0.0731,96870.0,96867.0,0.22595204]
[1740229901587,0.2165036,96868.0,96867.0,0.22595204]
[1740229901881,0.3708,96868.0,96862.0,0.24619117]
[1740229902184,0.0516291,96862.0,96856.0,0.24619117]
[1740229902381,0.2165271,96857.0,96856.0,0.24619117]
[1740229903273,0.2165271,96857.0,96856.0,0.24719117]
[1740229903878,0.2165271,96857.0,96856.0,0.24619117]
[1740229904884,0.3394271,96857.0,96856.0,0.24619117]
[1740229905481,0.3978271,96857.0,96856.0,0.24619117]
[1740229906081,0.1913,96857.0,96850.0,0.3608]
[1740229906278,0.01,96851.0,96850.0,0.3608]
[1740229906476,0.2165399,96851.0,96850.0,0.5673406]
[1740229907084,0.2165399,96851.0,96850.0,0.567342]
[1740229907481,0.2165399,96851.0,96850.0,0.568342]
[1740229908082,0.2165399,96851.0,96850.0,0.3618]
[1740229908484,0.2165399,96851.0,96850.0,0.3638]
[1740229912089,0.2165399,96851.0,96850.0,0.570342]
[1740229914893,0.2165399,96851.0,96850.0,0.3638]
[1740229915193,0.2165399,96851.0,96850.0,0.570342]
[1740229916490,0.206542,96850.0,96849.0,0.0015486]
[1740229916682,0.216542,96850.0,96849.0,0.0015486]
[1740229918093,0.216542,96850.0,96849.0,0.0025486]
[1740229918486,0.216542,96850.0,96849.0,0.0045486]
[1740229925493,0.206542,96850.0,96849.0,0.0045486]
[1740229925687,0.206542,96850.0,96849.0,0.0611486]
[1740229926198,0.10148,96861.0,96849.0,0.0611486]
[1740229926199,0.20667762,96859.0,96858.0,0.206525]
[1740229926394,0.20667762,96859.0,96858.0,0.329225]
[1740229926791,0.00015482,96859.0,96858.0,0.339225]
[1740229927590,0.20767762,96859.0,96858.0,0.339225]
[1740229929103,0.20867762,96859.0,96858.0,0.339225]
[1740229931106,0.00215482,96859.0,96858.0,0.339225]
[1740229931498,0.20867762,96859.0,96858.0,0.339225]
[1740229935802,0.20867762,96859.0,96858.0,0.400425]
[1740229936009,0.00215482,96859.0,96858.0,0.400425]
[1740229937206,0.20867762,96859.0,96858.0,0.400425]
[1740229940309,0.20867762,96859.0,96858.0,0.761225]
[1740229940501,0.00215482,96859.0,96858.0,0.761225]
[1740229942006,0.20867762,96859.0,96858.0,0.761225]
[1740229942912,0.20867762,96859.0,96858.0,0.862265]
[1740229943711,0.20767762,96859.0,96858.0,0.863265]
[1740229944209,0.20667762,96859.0,96858.0,0.863265]
[1740229946014,0.20667762,96859.0,96858.0,0.502465]
[1740229946216,0.20667762,96859.0,96858.0,0.863265]
[1740229949213,0.20667762,96859.0,96858.0,0.801065]
[1740229949812,0.20667762,96859.0,96858.0,0.740565]
[1740229950725,0.20667762,96859.0,96858.0,0.679365]
[1740229951922,0.20667762,96859.0,96858.0,0.678365]
[1740229952123,0.20667762,96859.0,96858.0,0.679365]
[1740229953221,0.20667762,96859.0,96858.0,0.578325]
[1740229953525,0.21667762,96859.0,96858.0,0.3618]
[1740229956723,0.21767762,96859.0,96858.0,0.3618]
[1740229957317,0.21767762,96859.0,96858.0,0.3608]
[1740229957518,0.21867762,96859.0,96858.0,0.3608]
[1740229957916,0.206542,96850.0,96849.0,0.0015486]
[1740229958118,0.216542,96850.0,96849.0,0.0015486]
[1740229958421,0.216542,96850.0,96849.0,0.2080928]
[1740229958616,0.278542,96850.0,96849.0,0.2080928]
[1740229959022,0.278542,96850.0,96849.0,0.2100928]
[1740229959524,0.278542,96850.0,96849.0,0.0035486]
[1740229960223,0.278542,96850.0,96849.0,0.0045486]
[1740229968431,0.278542,96850.0,96849.0,0.2110928]
[1740229969724,0.278542,96850.0,96849.0,0.0045486]
[1740229977942,0.278542,96850.0,96849.0,0.2110928]
[1740229978140,0.278542,96850.0,96849.0,0.0045486]
[1740229980738,0.278542,96850.0,96849.0,0.2110928]
[1740229981735,0.206542,96850.0,96849.0,0.2110928]
[1740229982445,0.0516325,96856.0,96855.0,0.2065271]
[1740229982643,0.1544547,96865.0,96858.0,0.206525]
[1740229983031,0.1544547,96865.0,96858.0,0.216525]
[1740229983237,0.3609652,96865.0,96858.0,0.216525]
[1740229983442,0.2065144,96863.0,96858.0,0.216525]
[1740229983744,0.00115482,96859.0,96858.0,0.216525]
[1740229985344,0.00115482,96859.0,96858.0,0.46271617]
[1740229986145,0.20767762,96859.0,96858.0,0.46271617]
[1740229988439,0.00115482,96859.0,96858.0,0.46271617]
[1740229989637,0.20767762,96859.0,96858.0,0.46271617]
[1740229991756,0.20867762,96859.0,96858.0,0.46271617]
[1740229992737,0.00215482,96859.0,96858.0,0.46271617]
[1740229993450,0.20867762,96859.0,96858.0,0.46271617]
[1740229994045,0.20867762,96859.0,96858.0,0.52231617]
[1740229994355,0.20867762,96859.0,96858.0,0.276125]
[1740229998146,0.20767762,96859.0,96858.0,0.277125]
[1740229998344,0.20667762,96859.0,96858.0,0.277125]
[1740230003456,0.00015482,96859.0,96858.0,0.277125]
[1740230003761,0.20667762,96859.0,96858.0,0.277125]
[1740230007960,0.20667762,96859.0,96858.0,0.998725]
[1740230008658,0.20667762,96859.0,96858.0,1.099725]
[1740230009265,0.20667762,96859.0,96858.0,0.378125]
[1740230009458,0.20667762,96859.0,96858.0,1.099725]
[1740230010357,0.20667762,96859.0,96858.0,1.040125]
[1740230010960,0.00015482,96859.0,96858.0,1.040125]
[1740230016566,0.00015482,96859.0,96858.0,1.259725]
[1740230018368,0.00015482,96859.0,96858.0,1.66393562]
[1740230018764,0.0572,96868.0,96862.0,0.051629]
[1740230018970,0.2581117,96877.0,96876.0,0.2064866]
[1740230019163,0.2581117,96877.0,96876.0,0.5672866]
[1740230019970,0.2681117,96877.0,96876.0,0.5672866]
[1740230020272,0.2681117,96877.0,96876.0,0.57832251]
[1740230020971,0.2711117,96877.0,96876.0,0.57832251]
[1740230021375,0.2611117,96877.0,96876.0,0.57832251]
[1740230021575,0.2771117,96877.0,96876.0,0.57932251]
[1740230022074,0.3382117,96877.0,96876.0,0.57932251]
[1740230026178,0.3382117,96877.0,96876.0,0.21852251]
[1740230026382,0.3382117,96877.0,96876.0,0.57932251]
[1740230040290,0.3382117,96877.0,96876.0,0.3618]
[1740230040496,0.2064909,96874.0,96873.0,0.18494863]
[1740230040686,0.2164909,96874.0,96873.0,0.18494863]
[1740230041280,0.2064951,96872.0,96871.0,0.01086171]
[1740230041594,0.2064994,96870.0,96869.0,0.45449928]
[1740230041798,0.2164994,96870.0,96869.0,0.45309928]
[1740230042585,0.2164994,96870.0,96869.0,0.4642151]
[1740230043985,0.2234994,96870.0,96869.0,0.4642151]
[1740230045597,0.2234994,96870.0,96869.0,0.21761692]
[1740230045997,0.2805994,96870.0,96869.0,0.21761692]
[1740230046802,0.2805994,96870.0,96869.0,0.28031692]
[1740230046991,0.2234994,96870.0,96869.0,0.28031692]
[1740230049094,0.2134994,96870.0,96869.0,0.34261692]
[1740230049294,0.2134994,96870.0,96869.0,0.35261692]
[1740230053103,0.2134994,96870.0,96869.0,0.29031692]
[1740230053300,0.2134994,96870.0,96869.0,0.28031692]
[1740230054100,0.2838994,96870.0,96869.0,0.07381582]
[1740230054305,0.2838994,96870.0,96869.0,0.01111582]
[1740230054608,0.0774,96870.0,96867.0,0.04144482]
[1740230054809,0.2165036,96868.0,96867.0,0.05229102]
[1740230055293,0.2165036,96868.0,96867.0,0.01100102]
[1740230056399,0.2185036,96868.0,96867.0,0.01100102]
[1740230057505,0.2185036,96868.0,96867.0,0.21750682]
[1740230057807,0.2215036,96868.0,96867.0,0.21750682]
[1740230079622,0.2215036,96868.0,96867.0,0.01100102]
[1740230080225,0.2215036,96868.0,96867.0,0.21750682]
[1740230080625,0.2215036,96868.0,96867.0,0.01100102]
[1740230081116,0.2215036,96868.0,96867.0,0.00015482]
[1740230081620,1.7215036,96868.0,96867.0,0.00015482]
[1740230082829,0.2115036,96868.0,96867.0,0.20666062]
[1740230083129,0.005,96868.0,96867.0,0.26996062]
[1740230083324,0.2115036,96868.0,96867.0,0.26996062]
[1740230083719,0.005,96868.0,96867.0,0.27996062]
[1740230084028,0.005,96868.0,96867.0,0.38092062]
[1740230086634,0.2115036,96868.0,96867.0,0.38092062]
[1740230087533,0.005,96868.0,96867.0,0.38092062]
[1740230088132,0.2115036,96868.0,96867.0,0.38092062]
[1740230088834,0.005,96868.0,96867.0,0.38092062]
[1740230091336,0.005,96868.0,96867.0,0.62742903]
[1740230092429,0.005,96868.0,96867.0,0.38092062]
[1740230092835,0.005,96868.0,96867.0,0.27996062]
[1740230093030,0.005,96868.0,96867.0,0.38088062]
[1740230096836,0.005,96868.0,96867.0,0.74168062]
[1740230098834,0.0516187,96882.0,96881.0,0.2064759]
[1740230099634,0.2424172,96885.0,96883.0,0.2580873]
[1740230099834,0.2064695,96884.0,96883.0,0.2580873]
[1740230100037,0.01,96884.0,96883.0,0.0516178]
[1740230100235,0.1268,96885.0,96883.0,0.0516178]
[1740230100435,0.3848864,96885.0,96884.0,0.2164695]
[1740230101638,0.3918864,96885.0,96884.0,0.2174695]
[1740230103643,0.3918864,96885.0,96884.0,0.2184695]
[1740230104744,0.3918864,96885.0,96884.0,0.5792695]
[1740230107645,0.4524864,96885.0,96884.0,0.5792695]
[1740230108549,0.4524864,96885.0,96884.0,0.2184695]
[1740230108747,0.4524864,96885.0,96884.0,0.5792695]
[1740230109348,0.4524864,96885.0,96884.0,0.2184695]
[1740230109550,0.4524864,96885.0,96884.0,0.5792695]
[1740230110147,0.3608,96900.0,96884.0,0.3728]
[1740230110342,0.267151,96894.0,96893.0,0.2064504]
[1740230110537,0.2580638,96894.0,96893.0,0.5772504]
[1740230111142,0.206451,96894.0,96893.0,0.5772504]
[1740230111539,0.207451,96894.0,96893.0,0.5782504]
[1740230112644,0.2074482,96894.0,96893.0,0.5782504]
[1740230112943,0.001,96894.0,96893.0,0.5782504]
[1740230113143,0.8195482,96914.0,96893.0,0.4234122]
[1740230113349,0.8195482,96914.0,96902.0,0.5772312]
[1740230113350,0.3884174,96909.0,96902.0,0.5772312]
[1740230113642,0.182,96909.0,96902.0,0.8032112]
[1740230114047,0.2064221,96907.0,96902.0,0.8032112]
[1740230114347,0.2336044,96909.0,96902.0,0.8032112]
[1740230114549,0.182,96909.0,96902.0,0.8032112]
[1740230114843,0.00115482,96903.0,96902.0,0.8042112]
[1740230116142,0.20758392,96903.0,96902.0,0.8042112]
[1740230116339,0.00115482,96903.0,96902.0,0.8042112]
[1740230117749,0.00115482,96903.0,96902.0,0.8642112]
[1740230118346,0.15459952,96907.0,96902.0,0.65678]
[1740230118547,0.15459952,96907.0,96906.0,0.5772227]
[1740230119046,1e-08,96907.0,96906.0,0.5772227]
[1740230119355,0.0015482,96914.0,96912.0,0.2064099]
[1740230119551,0.0015482,96914.0,96912.0,0.3172899]
[1740230119753,0.0015482,96914.0,96912.0,0.4417899]
[1740230120752,0.18651943,96913.0,96912.0,0.4417899]
[1740230121753,0.1206,96919.0,96918.0,0.2063971]
[1740230121754,0.0603,96919.0,96918.0,0.2063971]
[1740230121951,0.0603,96919.0,96918.0,0.2163971]
[1740230122650,0.0586,96923.0,96922.0,0.2063886]
[1740230122854,0.0686,96923.0,96922.0,0.6680686]
[1740230123358,0.0586,96923.0,96922.0,0.6780686]
[1740230124156,0.0586,96923.0,96922.0,0.5771886]
[1740230124457,0.0586,96923.0,96922.0,0.6780686]
[1740230129159,0.2649865,96923.0,96922.0,0.3172686]
[1740230130260,0.0586,96923.0,96922.0,0.3172686]
[1740230131753,0.2649865,96923.0,96922.0,0.3172286]
[1740230133863,0.0586,96923.0,96922.0,0.3172286]
[1740230134965,0.2649865,96923.0,96922.0,0.3172286]
[1740230135161,0.0586,96923.0,96922.0,0.3172286]
[1740230138465,0.2649865,96923.0,96922.0,0.3172286]
[1740230140169,0.2649865,96923.0,96922.0,0.3814286]
[1740230150076,0.2749865,96923.0,96922.0,0.3071886]
[1740230150466,0.2749865,96923.0,96922.0,0.2063886]
[1740230150662,0.2749865,96923.0,96922.0,0.1008]
[1740230151179,0.2749865,96923.0,96922.0,0.3071886]
[1740230151567,0.2749865,96923.0,96922.0,0.2063886]
[1740230153082,0.0686,96923.0,96920.0,0.04127]
[1740230153279,0.2163907,96921.0,96920.0,0.04127]
[1740230153585,0.2579985,96919.0,96918.0,0.0515988]
[1740230153783,0.2679985,96919.0,96918.0,0.0515988]
[1740230154084,0.2063992,96917.0,96916.0,0.5671986]
[1740230154285,0.2163992,96917.0,96916.0,0.5671986]
[1740230156186,0.2163992,96917.0,96916.0,0.3608]
[1740230156587,0.2163992,96917.0,96916.0,0.5672014]
[1740230156974,0.2163992,96917.0,96916.0,0.3608]
[1740230157173,0.2064035,96915.0,96914.0,0.18394461]
[1740230157378,0.2164035,96915.0,96914.0,0.18394461]
[1740230157774,0.2164035,96915.0,96914.0,0.39035021]
[1740230159290,0.2164035,96915.0,96914.0,0.2064056]
[1740230160192,0.2064099,96912.0,96911.0,0.258012]
[1740230160391,0.2164099,96912.0,96911.0,0.258012]
[1740230161385,0.2164099,96912.0,96911.0,0.259012]
[1740230162183,0.2164099,96912.0,96911.0,0.2074091]
[1740230163288,0.2164099,96912.0,96911.0,0.207412]
[1740230167994,0.2164099,96912.0,96911.0,0.206412]
[1740230168193,0.2164099,96912.0,96911.0,0.207412]
[1740230168994,0.2164099,96912.0,96911.0,0.206412]
[1740230169194,0.2164099,96912.0,96911.0,0.207412]
[1740230169989,0.2064099,96912.0,96911.0,0.207412]
[1740230170195,0.2164099,96912.0,96911.0,0.207412]
[1740230170396,0.2064099,96912.0,96911.0,0.207412]
[1740230170587,0.2164099,96912.0,96911.0,0.207412]
[1740230171488,0.2064099,96912.0,96911.0,0.207412]
[1740230171690,0.2164099,96912.0,96911.0,0.207412]
[1740230171896,0.2064099,96912.0,96911.0,0.207412]
[1740230172505,0.2164099,96912.0,96911.0,0.207412]
[1740230174209,0.992,96912.0,96903.0,1e-08]
[1740230174406,0.2064482,96894.0,96893.0,0.30761435]
[1740230174705,2.1780482,96894.0,96893.0,0.13437435]
[1740230175095,2.0772482,96894.0,96893.0,0.13437435]
[1740230175294,2.0742482,96894.0,96893.0,0.13437435]
[1740230175506,2.0742482,96894.0,96893.0,0.13637435]
[1740230176211,2.0742482,96894.0,96893.0,0.14037435]
[1740230176801,2.0742482,96894.0,96893.0,0.006]
[1740230177798,2.1134482,96894.0,96893.0,0.006]
[1740230179604,0.6134482,96894.0,96893.0,0.006]
[1740230179811,0.3608,96894.0,96893.0,0.006]
[1740230180114,0.5672482,96894.0,96893.0,0.006]
[1740230180607,0.5672482,96894.0,96893.0,0.2124504]
[1740230181109,0.3608,96894.0,96893.0,0.2124504]
[1740230181310,0.5672482,96894.0,96893.0,0.2124504]
[1740230182306,0.3608,96894.0,96893.0,0.2124504]
[1740230183710,0.3708,96894.0,96893.0,0.2124504]
[1740230183911,0.3608,96894.0,96893.0,0.2124504]
[1740230184110,0.3708,96894.0,96893.0,0.2124504]
[1740230184718,0.3608,96894.0,96893.0,0.2124504]
[1740230185112,0.05176222,96903.0,96893.0,0.016]
[1740230185418,0.2064388,96902.0,96901.0,0.2064312]
[1740230186210,0.2164388,96902.0,96901.0,0.2064312]
[1740230186410,0.01,96902.0,96898.0,0.1008]
[1740230186605,0.2064376,96899.0,96898.0,0.1008]
[1740230186820,0.2064376,96899.0,96898.0,0.3072397]
[1740230188212,0.2054376,96899.0,96898.0,0.3072397]
[1740230188516,0.2054376,96899.0,96898.0,0.3082397]
[1740230189426,0.2054376,96899.0,96898.0,0.3102397]
[1740230192619,0.01,96901.0,96898.0,0.1038]
[1740230192816,0.01,96901.0,96900.0,0.2064355]
[1740230193125,0.2164333,96901.0,96900.0,0.2064355]
[1740230194030,0.00015482,96903.0,96902.0,0.2064312]
[1740230194231,0.00015482,96903.0,96902.0,0.2164312]
[1740230194420,0.0516055,96907.0,96906.0,0.2580234]
[1740230194619,0.258026,96907.0,96906.0,0.3688234]
[1740230196230,0.258026,96907.0,96906.0,0.3698234]
[1740230197322,0.2064205,96907.0,96906.0,0.3698234]
[1740230197629,0.2064205,96907.0,96906.0,0.3718234]
[1740230198524,0.2064184,96908.0,96907.0,0.2580234]
[1740230198721,0.2064147,96913.0,96912.0,0.2064078]
[1740230199030,0.00154862,96914.0,96913.0,0.2064078]
[1740230199225,0.20795422,96914.0,96913.0,0.2064078]
[1740230199925,0.2580119,96913.0,96912.0,0.2064099]
[1740230201130,0.2580119,96913.0,96912.0,0.2664099]
[1740230204235,0.2580119,96913.0,96912.0,0.3279099]
[1740230221045,0.2580119,96913.0,96912.0,0.6887099]
[1740230222552,0.41280902,96913.0,96912.0,0.6887099]
[1740230225045,0.2064248,96905.0,96900.0,0.3618]
[1740230225247,0.2064248,96905.0,96900.0,0.3608]
[1740230225450,0.2658248,96905.0,96900.0,0.3608]
[1740230225750,0.2658248,96905.0,96897.0,0.1862]
[1740230226446,0.6266248,96905.0,96897.0,0.1862]
[1740230226646,0.6266248,96905.0,96904.0,0.00215482]
[1740230226647,0.6366248,96905.0,96904.0,0.00215482]
[1740230227245,0.6366248,96905.0,96904.0,0.00315482]
[1740230228743,2.1366248,96905.0,96904.0,0.00315482]
[1740230229145,2.1366248,96905.0,96904.0,0.003]
[1740230229345,2.1366248,96905.0,96904.0,2e-08]
[1740230231440,0.5672248,96905.0,96904.0,0.20642692]
[1740230231655,0.2566107,96905.0,96904.0,0.20642692]
[1740230232149,0.0501859,96905.0,96904.0,0.21689115]
[1740230232356,0.00154862,96914.0,96911.0,0.0516024]
[1740230232652,0.20795852,96914.0,96913.0,0.2064078]
[1740230232859,0.00154862,96914.0,96913.0,0.2064078]
[1740230233248,0.20795422,96914.0,96913.0,0.2064078]
[1740230233651,0.20895422,96914.0,96913.0,0.2064078]
[1740230233845,0.20895422,96914.0,96913.0,0.2164078]
[1740230234249,0.20995422,96914.0,96913.0,0.2164078]
[1740230234858,0.20995422,96914.0,96913.0,0.3171678]
[1740230235855,0.00354862,96914.0,96913.0,0.3171678]
[1740230236448,0.20995422,96914.0,96913.0,0.3171678]
[1740230237453,0.00354862,96914.0,96913.0,0.3171678]
[1740230245160,0.002,96914.0,96913.0,0.3171678]
[1740230251995,0.002,96914.0,96913.0,0.6779678]
[1740230252506,0.00015482,96916.0,96913.0,0.47156]
[1740230252699,0.00015482,96916.0,96915.0,0.2164035]
[1740230252986,0.00015482,96916.0,96915.0,0.3754235]
[1740230253681,0.00115482,96916.0,96915.0,0.3754235]
[1740230254869,0.00115482,96916.0,96915.0,0.4342235]
[1740230261468,0.00115482,96916.0,96915.0,0.4242235]
[1740230261667,0.00115482,96916.0,96915.0,0.4342235]
[1740230262170,0.00115482,96916.0,96915.0,0.4242235]
[1740230262574,0.00115482,96916.0,96915.0,0.4342235]
[1740230267781,0.00115482,96916.0,96915.0,0.2747035]
[1740230267987,0.00115482,96916.0,96915.0,0.3754235]
[1740230270585,0.00115482,96916.0,96915.0,0.7362235]
[1740230271782,0.00115482,96916.0,96915.0,0.98228136]
[1740230274393,0.20755622,96916.0,96915.0,0.76587786]
[1740230274588,0.20755622,96916.0,96915.0,0.97228136]
[1740230274788,0.26645622,96916.0,96915.0,0.97228136]
[1740230275291,0.26645622,96916.0,96915.0,0.98228136]
[1740230276191,0.00115482,96916.0,96915.0,0.98228136]
[1740230276892,0.00115482,96916.0,96915.0,0.7362235]
[1740230283991,0.15443423,96930.0,96927.0,0.2579676]
[1740230284194,0.41240123,96930.0,96929.0,0.2163737]
[1740230284492,0.41240123,96930.0,96929.0,0.01]
[1740230285294,0.065,96933.0,96927.0,0.10072]
[1740230285601,0.5671758,96928.0,96927.0,0.10072]
[1740230285898,0.2063907,96921.0,96920.0,0.33865817]
[1740230286094,0.2063907,96921.0,96920.0,0.41045342]
[1740230286289,0.2677907,96921.0,96920.0,0.35885632]
[1740230286493,0.2777907,96921.0,96920.0,0.35885632]
[1740230286693,0.2777907,96921.0,96920.0,0.25813632]
[1740230295498,0.2677907,96921.0,96920.0,0.25813632]
[1740230298190,0.0515924,96931.0,96921.0,0.0515976]
[1740230298497,0.0515924,96931.0,96927.0,0.2063779]
[1740230298704,0.0646,96932.0,96927.0,0.2063779]
[1740230299001,0.5671758,96928.0,96927.0,0.3384779]
[1740230300099,0.2063752,96929.0,96928.0,0.2579676]
[1740230300305,0.2063752,96929.0,96928.0,0.2679676]
[1740230300700,0.0515914,96933.0,96932.0,0.2063673]
[1740230300701,0.2579613,96933.0,96932.0,0.2063673]
[1740230301100,0.2579613,96933.0,96932.0,0.2710673]
[1740230302193,0.2063699,96933.0,96932.0,0.2720673]
[1740230302701,0.41239023,96935.0,96934.0,0.206363]
[1740230303288,0.15443423,96935.0,96934.0,0.206363]
[1740230303491,0.36079513,96935.0,96934.0,0.206363]
[1740230303897,0.36079513,96935.0,96934.0,0.207363]
[1740230304106,0.2063609,96935.0,96934.0,0.207363]
[1740230304295,0.2063609,96935.0,96934.0,0.208363]
[1740230305802,0.2063609,96935.0,96934.0,0.21901011]
[1740230309305,0.2063609,96935.0,96920.0,0.34735835]
[1740230309306,0.2063801,96926.0,96920.0,0.34735835]
[1740230309606,0.2063801,96926.0,96920.0,0.39895615]
[1740230309800,0.2063801,96926.0,96925.0,0.3911985]
[1740230310103,1.7063801,96926.0,96925.0,0.3911985]
[1740230310298,0.2063801,96926.0,96925.0,0.40177326]
[1740230310719,0.2063801,96926.0,96925.0,0.40277326]
[1740230311206,0.2063801,96926.0,96925.0,0.46267326]
[1740230312308,0.2063801,96926.0,96925.0,0.27785696]
[1740230315303,0.2063801,96926.0,96925.0,0.01157476]
[1740230316908,0.36081433,96926.0,96925.0,0.01157476]
[1740230317111,0.36081433,96926.0,96925.0,0.21795696]
[1740230317312,0.36081433,96926.0,96925.0,0.01157476]
[1740230320807,0.2063801,96926.0,96925.0,0.01157476]
[1740230323010,0.5671801,96926.0,96925.0,0.21795696]
[1740230328913,0.61736455,96926.0,96925.0,0.21795696]
[1740230332920,0.61736455,96926.0,96925.0,0.001]
[1740230333239,0.2064248,96905.0,96904.0,0.0642]
[1740230333425,0.2064248,96905.0,96904.0,0.1976]
[1740230333620,1.7064248,96905.0,96904.0,0.1976]
[1740230334313,1.7064248,96905.0,96904.0,0.4040269]
[1740230334514,1.7164248,96905.0,96904.0,0.4060269]
[1740230335318,0.2164248,96905.0,96904.0,0.4060269]
[1740230336120,0.2064248,96905.0,96904.0,0.4060269]
[1740230336329,0.2164248,96905.0,96904.0,0.4060269]
[1740230336717,0.2064248,96905.0,96904.0,0.4060269]
[1740230337322,0.3096267,96911.0,96910.0,0.2064142]
[1740230337624,0.2064194,96911.0,96910.0,0.2064142]
[1740230338021,0.1547614,96914.0,96912.0,0.0516024]
[1740230338223,0.4127706,96914.0,96913.0,0.2711078]
[1740230338626,0.4227706,96914.0,96913.0,0.2711078]
[1740230339126,0.4237706,96914.0,96913.0,0.2711078]
[1740230339329,0.4137706,96914.0,96913.0,0.2711078]
[1740230339527,0.4237706,96914.0,96913.0,0.2711078]
[1740230339728,0.4137706,96914.0,96913.0,0.2711078]
[1740230339930,0.3621692,96914.0,96913.0,0.2711078]
[1740230340133,0.20756262,96914.0,96913.0,0.2711078]
[1740230341224,0.21856262,96914.0,96913.0,0.2711078]
[1740230341523,0.20856262,96914.0,96913.0,0.2711078]
[1740230343036,0.21856262,96914.0,96913.0,0.2711078]
[1740230343227,0.20856262,96914.0,96913.0,0.2711078]
[1740230343428,0.21856262,96914.0,96913.0,0.2711078]
[1740230346833,0.00215482,96914.0,96913.0,0.2811078]
[1740230347035,0.20856042,96914.0,96913.0,0.2811078]
[1740230355756,0.20856042,96914.0,96913.0,0.2711078]
[1740230356446,0.21856042,96914.0,96913.0,0.2711078]
[1740230356639,0.2064099,96912.0,96911.0,0.04127]
[1740230356847,0.2164099,96912.0,96911.0,0.04127]
[1740230357043,0.2840099,96912.0,96911.0,0.206412]
[1740230357240,1.7840099,96912.0,96911.0,0.206412]
[1740230357440,0.206412,96911.0,96910.0,0.5672134]
[1740230357641,0.284112,96911.0,96910.0,0.3608]
[1740230357840,0.284112,96911.0,96910.0,0.5672142]
[1740230358943,0.218412,96911.0,96910.0,0.5672142]
[1740230362843,0.218412,96911.0,96910.0,0.2064142]
[1740230379456,0.208412,96911.0,96910.0,0.2064142]
[1740230380461,0.012,96911.0,96910.0,0.2064142]
[1740230380645,0.218412,96911.0,96910.0,0.2064142]
[1740230380961,0.012,96911.0,96910.0,0.2064142]
[1740230381655,0.218412,96911.0,96910.0,0.2064142]
[1740230382154,0.208412,96911.0,96910.0,0.2064142]
[1740230382658,0.218412,96911.0,96910.0,0.2064142]
[1740230383663,0.208412,96911.0,96910.0,0.2064142]
[1740230390576,0.36301858,96911.0,96910.0,0.2064142]
[1740230392171,0.15660658,96911.0,96910.0,0.2064142]
[1740230392671,0.15660658,96911.0,96910.0,0.2164142]
[1740230394883,0.002,96911.0,96910.0,0.2164142]
[1740230400188,0.002,96911.0,96910.0,0.5772142]
[1740230402591,0.002,96911.0,96910.0,0.5672142]
[1740230402795,0.002,96911.0,96910.0,0.5772142]